[Event "Titled Tuesday Blitz May 30 Early 2023"]
[White "Silvestre, Christian"]
[Black "Hoghmrtsyan, Artur"]
[WhiteFideId "30956269"]
[BlackFideId "13306685"]
[WhiteElo "2363"]
[BlackElo "2654"]
[Result "0-1"]
[Round "02"]
[TimeControl "180+2"]
[Date "2023.05.30"]
[WhiteClock "0:00:11"]
[BlackClock "0:00:08"]

1. e4 {[%clk 0:03:00]}  e5 {[%clk 0:02:55]} 2. Nf3 {[%clk 0:02:58]}  Nc6 {[%clk 0:02:56]} 3. Bc4 {[%clk 0:02:58]}  Bc5 {[%clk 0:02:54]} 4. d3 {[%clk 0:02:58]}  Nf6 {[%clk 0:02:53]} 5. h3 {[%clk 0:02:52]}  h6 {[%clk 0:02:50]} 6. Nc3 {[%clk 0:02:51]}  a6 {[%clk 0:02:49]} 7. a3 {[%clk 0:02:49]}  d6 {[%clk 0:02:45]} 8. Be3 {[%clk 0:02:47]}  O-O {[%clk 0:02:40]} 9. O-O {[%clk 0:02:44]}  Kh8 {[%clk 0:02:33]} 10. Nd5 {[%clk 0:02:31]}  Nh7 {[%clk 0:02:29]} 11. d4 {[%clk 0:02:27]}  exd4 {[%clk 0:02:22]} 12. Nxd4 {[%clk 0:02:26]}  Ne5 {[%clk 0:02:17]} 13. Be2 {[%clk 0:02:03]}  c6 {[%clk 0:02:11]} 14. Nc3 {[%clk 0:01:56]}  Ng6 {[%clk 0:01:29]} 15. Qd2 {[%clk 0:01:46]}  Qe7 {[%clk 0:01:03]} 16. Rad1 {[%clk 0:01:44]}  Bd7 {[%clk 0:01:00]} 17. Nf3 {[%clk 0:01:29]}  Bxe3 {[%clk 0:00:57]} 18. Qxe3 {[%clk 0:01:30]}  f5 {[%clk 0:00:56]} 19. Qd4 {[%clk 0:01:23]}  fxe4 {[%clk 0:00:53]} 20. Nxe4 {[%clk 0:01:20]}  d5 {[%clk 0:00:53]} 21. Nc3 {[%clk 0:01:19]}  Nf4 {[%clk 0:00:52]} 22. Rfe1 {[%clk 0:01:16]}  Qd6 {[%clk 0:00:45]} 23. Ne5 {[%clk 0:01:09]}  c5 {[%clk 0:00:33]} 24. Ne4 {[%clk 0:00:59]}  Qe7 {[%clk 0:00:17]} 25. Nxc5 {[%clk 0:00:54]}  Bxh3 {[%clk 0:00:13]} 26. Bf1 {[%clk 0:00:45]}  Qg5 {[%clk 0:00:13]} 27. Nf3 {[%clk 0:00:40]}  Qg4 {[%clk 0:00:12]} 28. Nh2 {[%clk 0:00:34]}  Qg6 {[%clk 0:00:12]} 29. g3 {[%clk 0:00:29]}  Bxf1 {[%clk 0:00:12]} 30. Nxf1 {[%clk 0:00:29]}  Nh3+ {[%clk 0:00:11]} 31. Kg2 {[%clk 0:00:20]}  Nxf2 {[%clk 0:00:12]} 32. Re6 {[%clk 0:00:18]}  Qf5 {[%clk 0:00:09]} 33. Qxd5 {[%clk 0:00:19]}  Qxc2 {[%clk 0:00:08]} 34. Rd2 {[%clk 0:00:18]}  Qc1 {[%clk 0:00:07]} 35. Rxf2 {[%clk 0:00:18]}  Rxf2+ {[%clk 0:00:07]} 36. Kxf2 {[%clk 0:00:18]}  Rf8+ {[%clk 0:00:07]} 37. Kg2 {[%clk 0:00:12]}  Qxf1+ {[%clk 0:00:07]} 38. Kh2 {[%clk 0:00:11]}  Rf2+ {[%clk 0:00:08]} 0-1


[Site "https://www.chess.com"]

[Event "Titled Tuesday Blitz May 30 Early 2023"]
[White "Koridze, Lile"]
[Black "Dehtiarov, Roman"]
[WhiteFideId "13612514"]
[BlackFideId "14186640"]
[WhiteElo "2047"]
[BlackElo "2189"]
[Result "1-0"]
[Round "02"]
[TimeControl "180+2"]
[Date "2023.05.30"]
[WhiteClock "0:00:18"]
[BlackClock "0:00:04"]

1. d4 {[%clk 0:03:00]}  Nf6 {[%clk 0:03:00]} 2. c4 {[%clk 0:02:56]}  g6 {[%clk 0:03:00]} 3. Nc3 {[%clk 0:02:56]}  d5 {[%clk 0:03:00]} 4. Nf3 {[%clk 0:02:55]}  Bg7 {[%clk 0:03:00]} 5. cxd5 {[%clk 0:02:53]}  Nxd5 {[%clk 0:03:00]} 6. Bd2 {[%clk 0:02:54]}  O-O {[%clk 0:02:58]} 7. e4 {[%clk 0:02:50]}  Nxc3 {[%clk 0:02:58]} 8. Bxc3 {[%clk 0:02:49]}  b6 {[%clk 0:02:43]} 9. Be2 {[%clk 0:02:48]}  Bb7 {[%clk 0:02:42]} 10. d5 {[%clk 0:02:48]}  Bxc3+ {[%clk 0:02:38]} 11. bxc3 {[%clk 0:02:48]}  Nd7 {[%clk 0:02:34]} 12. O-O {[%clk 0:02:47]}  Nf6 {[%clk 0:02:19]} 13. Bd3 {[%clk 0:02:46]}  c6 {[%clk 0:01:50]} 14. c4 {[%clk 0:02:26]}  cxd5 {[%clk 0:01:49]} 15. cxd5 {[%clk 0:02:25]}  Nd7 {[%clk 0:01:50]} 16. Qe2 {[%clk 0:02:24]}  Nc5 {[%clk 0:01:49]} 17. Bc4 {[%clk 0:02:24]}  Rc8 {[%clk 0:01:48]} 18. Rac1 {[%clk 0:02:24]}  Qd7 {[%clk 0:01:38]} 19. Rfd1 {[%clk 0:02:23]}  Rfd8 {[%clk 0:01:30]} 20. Ng5 {[%clk 0:02:18]}  h6 {[%clk 0:01:18]} 21. Nf3 {[%clk 0:02:07]}  Qg4 {[%clk 0:00:49]} 22. Re1 {[%clk 0:02:06]}  Rc7 {[%clk 0:00:21]} 23. Qe3 {[%clk 0:01:48]}  Kh7 {[%clk 0:00:07]} 24. Ne5 {[%clk 0:01:47]}  Qg5 {[%clk 0:00:05]} 25. Qxg5 {[%clk 0:01:45]}  hxg5 {[%clk 0:00:06]} 26. Nxf7 {[%clk 0:01:46]}  Rdc8 {[%clk 0:00:07]} 27. Nxg5+ {[%clk 0:01:46]}  Kh6 {[%clk 0:00:07]} 28. Nf7+ {[%clk 0:01:42]}  Kg7 {[%clk 0:00:08]} 29. Ne5 {[%clk 0:01:42]}  Na4 {[%clk 0:00:08]} 30. Rcd1 {[%clk 0:01:26]}  Rxc4 {[%clk 0:00:08]} 31. Nxc4 {[%clk 0:01:26]}  Rxc4 {[%clk 0:00:08]} 32. e5 {[%clk 0:01:26]}  Nc5 {[%clk 0:00:07]} 33. d6 {[%clk 0:01:26]}  exd6 {[%clk 0:00:08]} 34. exd6 {[%clk 0:01:22]}  Bc6 {[%clk 0:00:08]} 35. Re7+ {[%clk 0:01:19]}  Kf6 {[%clk 0:00:09]} 36. Rxa7 {[%clk 0:01:20]}  Bd7 {[%clk 0:00:09]} 37. h3 {[%clk 0:01:18]}  Rc2 {[%clk 0:00:09]} 38. Rd5 {[%clk 0:01:13]}  Ke6 {[%clk 0:00:09]} 39. Rd4 {[%clk 0:01:13]}  Ke5 {[%clk 0:00:06]} 40. Rd1 {[%clk 0:01:12]}  Ke6 {[%clk 0:00:05]} 41. Rc7 {[%clk 0:01:11]}  Rb2 {[%clk 0:00:05]} 42. a3 {[%clk 0:01:09]}  Ra2 {[%clk 0:00:05]} 43. Rb1 {[%clk 0:01:08]}  Rxa3 {[%clk 0:00:04]} 44. Rxb6 {[%clk 0:01:07]}  Ne4 {[%clk 0:00:05]} 45. Rbb7 {[%clk 0:01:05]}  Nf6 {[%clk 0:00:05]} 46. Rb6 {[%clk 0:01:04]}  Rd3 {[%clk 0:00:05]} 47. Ra7 {[%clk 0:01:00]}  Rd1+ {[%clk 0:00:05]} 48. Kh2 {[%clk 0:01:00]}  Ne4 {[%clk 0:00:06]} 49. f3 {[%clk 0:00:46]}  Nf6 {[%clk 0:00:05]} 50. Ra3 {[%clk 0:00:45]}  Nd5 {[%clk 0:00:04]} 51. Rba6 {[%clk 0:00:43]}  Nf4 {[%clk 0:00:05]} 52. Re3+ {[%clk 0:00:42]}  Kf6 {[%clk 0:00:03]} 53. Re4 {[%clk 0:00:31]}  g5 {[%clk 0:00:03]} 54. h4 {[%clk 0:00:31]}  Rd2 {[%clk 0:00:04]} 55. hxg5+ {[%clk 0:00:30]}  Kxg5 {[%clk 0:00:04]} 56. Ra5+ {[%clk 0:00:31]}  Bf5 {[%clk 0:00:05]} 57. Ree5 {[%clk 0:00:26]}  Rxg2+ {[%clk 0:00:05]} 58. Kh1 {[%clk 0:00:27]}  Kh4 {[%clk 0:00:04]} 59. Rxf5 {[%clk 0:00:24]}  Kg3 {[%clk 0:00:04]} 60. Rg5+ {[%clk 0:00:18]}  Kf2 {[%clk 0:00:04]} 1-0


[Site "https://www.chess.com"]

[Event "Titled Tuesday Blitz May 30 Early 2023"]
[White "Sourath Biswas"]
[Black "Fernandez Siles, Luis"]
[WhiteFideId "35091484"]
[BlackFideId "2209420"]
[WhiteElo "2171"]
[BlackElo "2195"]
[Result "1-0"]
[Round "02"]
[TimeControl "180+2"]
[Date "2023.05.30"]
[WhiteClock "0:00:19"]
[BlackClock "0:00:00"]

1. d4 {[%clk 0:03:00]}  Nf6 {[%clk 0:02:59]} 2. Nf3 {[%clk 0:02:56]}  g6 {[%clk 0:02:59]} 3. g3 {[%clk 0:02:53]}  Bg7 {[%clk 0:02:58]} 4. Bg2 {[%clk 0:02:54]}  O-O {[%clk 0:02:58]} 5. O-O {[%clk 0:02:55]}  d6 {[%clk 0:02:59]} 6. b3 {[%clk 0:02:55]}  Ne4 {[%clk 0:02:53]} 7. Bb2 {[%clk 0:02:56]}  f5 {[%clk 0:02:53]} 8. Nbd2 {[%clk 0:02:55]}  Nc6 {[%clk 0:02:50]} 9. c4 {[%clk 0:02:44]}  Nxd2 {[%clk 0:02:47]} 10. Qxd2 {[%clk 0:02:43]}  e5 {[%clk 0:02:13]} 11. d5 {[%clk 0:02:44]}  Ne7 {[%clk 0:02:11]} 12. Ng5 {[%clk 0:02:44]}  Bh6 {[%clk 0:01:38]} 13. h4 {[%clk 0:02:41]}  f4 {[%clk 0:01:10]} 14. e3 {[%clk 0:01:16]}  fxg3 {[%clk 0:01:01]} 15. fxg3 {[%clk 0:01:16]}  Nf5 {[%clk 0:00:57]} 16. Qf2 {[%clk 0:00:53]}  Nxh4 {[%clk 0:00:44]} 17. Nf7 {[%clk 0:00:52]}  Nxg2 {[%clk 0:00:00]} 18. Nxh6+ {[%clk 0:00:19]} 1-0


[Site "https://www.chess.com"]

[Event "Titled Tuesday Blitz May 30 Early 2023"]
[White "Goswami, Vedant"]
[Black "Pinheiro, Iung Alicio de O."]
[WhiteFideId "5003725"]
[BlackFideId "2104350"]
[WhiteElo "2011"]
[BlackElo "2283"]
[Result "0-1"]
[Round "02"]
[TimeControl "180+2"]
[Date "2023.05.30"]
[WhiteClock "0:00:00"]
[BlackClock "0:00:16"]

1. d4 {[%clk 0:03:00]}  Nf6 {[%clk 0:02:57]} 2. Nf3 {[%clk 0:02:59]}  g6 {[%clk 0:02:56]} 3. Bf4 {[%clk 0:02:54]}  d6 {[%clk 0:02:55]} 4. Nc3 {[%clk 0:02:51]}  Nh5 {[%clk 0:02:36]} 5. Bg5 {[%clk 0:02:50]}  h6 {[%clk 0:02:35]} 6. Bc1 {[%clk 0:02:46]}  Nd7 {[%clk 0:02:11]} 7. e4 {[%clk 0:02:43]}  e5 {[%clk 0:02:10]} 8. dxe5 {[%clk 0:02:31]}  dxe5 {[%clk 0:02:09]} 9. Bc4 {[%clk 0:02:30]}  c6 {[%clk 0:02:08]} 10. O-O {[%clk 0:02:12]}  Qf6 {[%clk 0:01:58]} 11. Ne1 {[%clk 0:01:52]}  Bc5 {[%clk 0:01:47]} 12. Nd3 {[%clk 0:01:48]}  Bd4 {[%clk 0:01:44]} 13. Kh1 {[%clk 0:01:40]}  Nc5 {[%clk 0:01:40]} 14. Be3 {[%clk 0:01:14]}  Nxd3 {[%clk 0:01:35]} 15. Qxd3 {[%clk 0:01:05]}  Nf4 {[%clk 0:01:33]} 16. Bxf4 {[%clk 0:00:46]}  exf4 {[%clk 0:01:12]} 17. e5 {[%clk 0:00:43]}  Bxe5 {[%clk 0:01:10]} 18. Ne4 {[%clk 0:00:40]}  Qe7 {[%clk 0:01:02]} 19. Rfe1 {[%clk 0:00:31]}  Bf5 {[%clk 0:00:59]} 20. Nd6+ {[%clk 0:00:16]}  Bxd6 {[%clk 0:00:52]} 21. Rxe7+ {[%clk 0:00:11]}  Bxe7 {[%clk 0:00:53]} 22. Qd4 {[%clk 0:00:11]}  O-O {[%clk 0:00:52]} 23. Re1 {[%clk 0:00:11]}  Rfd8 {[%clk 0:00:26]} 24. Qxf4 {[%clk 0:00:10]}  Bg5 {[%clk 0:00:22]} 25. Qf3 {[%clk 0:00:09]}  Rd4 {[%clk 0:00:21]} 26. Bb3 {[%clk 0:00:08]}  Rad8 {[%clk 0:00:20]} 27. h3 {[%clk 0:00:07]}  h5 {[%clk 0:00:19]} 28. c3 {[%clk 0:00:04]}  Rd3 {[%clk 0:00:18]} 29. Qe2 {[%clk 0:00:03]}  Rd2 {[%clk 0:00:17]} 30. Qf3 {[%clk 0:00:00]}  R8d3 {[%clk 0:00:16]} 0-1


[Site "https://www.chess.com"]

[Event "Titled Tuesday Blitz May 30 Early 2023"]
[White "koncheto"]
[Black "Kaganskiy, Gleb"]
[BlackFideId "4132025"]
[WhiteElo "2608"]
[BlackElo "2165"]
[Result "1-0"]
[Round "02"]
[TimeControl "180+2"]
[Date "2023.05.30"]
[WhiteClock "0:01:34"]
[BlackClock "0:01:25"]

1. e4 {[%clk 0:02:37]}  e6 {[%clk 0:02:56]} 2. d4 {[%clk 0:02:37]}  d5 {[%clk 0:02:57]} 3. Nd2 {[%clk 0:02:38]}  c5 {[%clk 0:02:56]} 4. exd5 {[%clk 0:02:27]}  Qxd5 {[%clk 0:02:57]} 5. Ngf3 {[%clk 0:02:27]}  cxd4 {[%clk 0:02:54]} 6. Bc4 {[%clk 0:02:28]}  Qd6 {[%clk 0:02:53]} 7. O-O {[%clk 0:02:21]}  Nf6 {[%clk 0:02:53]} 8. Nb3 {[%clk 0:02:19]}  Nc6 {[%clk 0:02:53]} 9. Nbxd4 {[%clk 0:02:18]}  Nxd4 {[%clk 0:02:54]} 10. Nxd4 {[%clk 0:02:19]}  Be7 {[%clk 0:02:53]} 11. c3 {[%clk 0:02:19]}  O-O {[%clk 0:02:51]} 12. Qf3 {[%clk 0:02:19]}  Qc7 {[%clk 0:02:43]} 13. Bd3 {[%clk 0:02:19]}  Bd7 {[%clk 0:02:31]} 14. Re1 {[%clk 0:02:18]}  Bc6 {[%clk 0:02:29]} 15. Qh3 {[%clk 0:02:18]}  Rad8 {[%clk 0:02:17]} 16. Bg5 {[%clk 0:02:09]}  g6 {[%clk 0:02:17]} 17. Re3 {[%clk 0:01:49]}  e5 {[%clk 0:02:10]} 18. Nf5 {[%clk 0:01:40]}  gxf5 {[%clk 0:01:53]} 19. Bxf5 {[%clk 0:01:34]}  Qd6 {[%clk 0:01:35]} 20. Bxf6 {[%clk 0:01:34]}  Qd1+ {[%clk 0:01:34]} 21. Re1 {[%clk 0:01:35]}  Bxf6 {[%clk 0:01:25]} 22. Qxh7# {[%clk 0:01:34]} 1-0


[Site "https://www.chess.com"]

[Event "Titled Tuesday Blitz May 30 Early 2023"]
[White "Mamedov, Edgar"]
[Black "Manon-og, Ramon Jr."]
[WhiteFideId "13739980"]
[BlackFideId "5200776"]
[WhiteElo "2317"]
[BlackElo "2347"]
[Result "1-0"]
[Round "02"]
[TimeControl "180+2"]
[Date "2023.05.30"]
[WhiteClock "0:01:19"]
[BlackClock "0:00:37"]

1. d4 {[%clk 0:03:00]}  Nf6 {[%clk 0:02:51]} 2. Nf3 {[%clk 0:03:00]}  g6 {[%clk 0:02:50]} 3. Nbd2 {[%clk 0:02:59]}  d5 {[%clk 0:02:50]} 4. e3 {[%clk 0:03:00]}  Bg7 {[%clk 0:02:50]} 5. b4 {[%clk 0:02:58]}  O-O {[%clk 0:02:51]} 6. c4 {[%clk 0:02:58]}  c6 {[%clk 0:02:51]} 7. a4 {[%clk 0:02:56]}  Nbd7 {[%clk 0:02:48]} 8. Bb2 {[%clk 0:02:53]}  Re8 {[%clk 0:02:48]} 9. Be2 {[%clk 0:02:51]}  b6 {[%clk 0:02:35]} 10. O-O {[%clk 0:02:50]}  Bb7 {[%clk 0:02:35]} 11. cxd5 {[%clk 0:02:49]}  Nxd5 {[%clk 0:02:33]} 12. Qb3 {[%clk 0:02:47]}  N7f6 {[%clk 0:02:28]} 13. Rac1 {[%clk 0:02:46]}  Rc8 {[%clk 0:02:27]} 14. b5 {[%clk 0:02:43]}  cxb5 {[%clk 0:02:24]} 15. Bxb5 {[%clk 0:02:42]}  Rf8 {[%clk 0:02:23]} 16. Ne5 {[%clk 0:02:42]}  h5 {[%clk 0:02:15]} 17. Ba3 {[%clk 0:02:36]}  Kh7 {[%clk 0:02:14]} 18. Bc6 {[%clk 0:02:36]}  Ba6 {[%clk 0:02:10]} 19. Rfe1 {[%clk 0:02:32]}  Ng4 {[%clk 0:02:06]} 20. Qxd5 {[%clk 0:02:25]}  Nxe5 {[%clk 0:01:58]} 21. dxe5 {[%clk 0:02:23]}  Qxd5 {[%clk 0:01:58]} 22. Bxd5 {[%clk 0:02:22]}  Rfd8 {[%clk 0:01:56]} 23. Bc4 {[%clk 0:01:41]}  Bb7 {[%clk 0:01:20]} 24. Nf3 {[%clk 0:01:34]}  Bxf3 {[%clk 0:01:20]} 25. gxf3 {[%clk 0:01:34]}  e6 {[%clk 0:01:18]} 26. Bd6 {[%clk 0:01:29]}  f6 {[%clk 0:01:01]} 27. f4 {[%clk 0:01:25]}  fxe5 {[%clk 0:00:58]} 28. Bxe5 {[%clk 0:01:24]}  Re8 {[%clk 0:00:59]} 29. Ba6 {[%clk 0:01:22]}  Rxc1 {[%clk 0:00:56]} 30. Rxc1 {[%clk 0:01:23]}  Bf8 {[%clk 0:00:55]} 31. Rc7+ {[%clk 0:01:23]}  Kh6 {[%clk 0:00:55]} 32. Bb5 {[%clk 0:01:22]}  Rd8 {[%clk 0:00:55]} 33. Rxa7 {[%clk 0:01:21]}  h4 {[%clk 0:00:54]} 34. Bf6 {[%clk 0:01:20]}  Rd1+ {[%clk 0:00:42]} 35. Kg2 {[%clk 0:01:20]}  Kh5 {[%clk 0:00:37]} 36. Be2+ {[%clk 0:01:19]} 1-0


[Site "https://www.chess.com"]

[Event "Titled Tuesday Blitz May 30 Early 2023"]
[White "Korpics, Zsolt"]
[Black "Shevtchenko, Olesya"]
[WhiteFideId "705241"]
[BlackFideId "24131890"]
[WhiteElo "2340"]
[BlackElo "2003"]
[Result "0-1"]
[Round "02"]
[TimeControl "180+2"]
[Date "2023.05.30"]
[WhiteClock "0:00:02"]
[BlackClock "0:01:01"]

1. e4 {[%clk 0:03:00]}  c6 {[%clk 0:02:58]} 2. Nf3 {[%clk 0:03:00]}  d5 {[%clk 0:02:59]} 3. Nc3 {[%clk 0:03:01]}  dxe4 {[%clk 0:02:59]} 4. Nxe4 {[%clk 0:03:02]}  Nf6 {[%clk 0:03:00]} 5. Qe2 {[%clk 0:03:02]}  Nxe4 {[%clk 0:03:00]} 6. Qxe4 {[%clk 0:03:03]}  Qd5 {[%clk 0:03:00]} 7. Qh4 {[%clk 0:03:03]}  Qe6+ {[%clk 0:03:00]} 8. Be2 {[%clk 0:03:03]}  Qg6 {[%clk 0:03:01]} 9. d3 {[%clk 0:02:33]}  Qxg2 {[%clk 0:02:59]} 10. Rg1 {[%clk 0:02:33]}  Qh3 {[%clk 0:02:59]} 11. Qc4 {[%clk 0:02:17]}  Qe6 {[%clk 0:02:59]} 12. Qc3 {[%clk 0:02:08]}  h6 {[%clk 0:02:55]} 13. Be3 {[%clk 0:02:06]}  Nd7 {[%clk 0:02:44]} 14. Nd4 {[%clk 0:01:57]}  Qf6 {[%clk 0:02:42]} 15. O-O-O {[%clk 0:01:53]}  Nb6 {[%clk 0:02:39]} 16. Qb3 {[%clk 0:01:25]}  Nd5 {[%clk 0:02:35]} 17. Rdf1 {[%clk 0:01:02]}  e6 {[%clk 0:02:28]} 18. Bf3 {[%clk 0:00:57]}  Bd6 {[%clk 0:02:23]} 19. Be4 {[%clk 0:00:54]}  Bxh2 {[%clk 0:02:20]} 20. Rh1 {[%clk 0:00:49]}  Bf4 {[%clk 0:02:20]} 21. Kb1 {[%clk 0:00:36]}  Be5 {[%clk 0:02:08]} 22. Nf3 {[%clk 0:00:34]}  Nxe3 {[%clk 0:01:33]} 23. fxe3 {[%clk 0:00:33]}  Bd6 {[%clk 0:01:30]} 24. Nd4 {[%clk 0:00:31]}  Qe7 {[%clk 0:01:29]} 25. Rhg1 {[%clk 0:00:28]}  Be5 {[%clk 0:01:29]} 26. Nxc6 {[%clk 0:00:24]}  bxc6 {[%clk 0:01:22]} 27. Bxc6+ {[%clk 0:00:24]}  Bd7 {[%clk 0:01:23]} 28. Bxa8 {[%clk 0:00:24]}  O-O {[%clk 0:01:23]} 29. Be4 {[%clk 0:00:09]}  Rb8 {[%clk 0:01:23]} 30. Qc4 {[%clk 0:00:09]}  Bb5 {[%clk 0:01:09]} 31. Qb3 {[%clk 0:00:06]}  Be8 {[%clk 0:01:10]} 32. Qc4 {[%clk 0:00:06]}  Bxb2 {[%clk 0:01:06]} 33. d4 {[%clk 0:00:06]}  Bb5 {[%clk 0:01:05]} 34. Qb3 {[%clk 0:00:03]}  Qc7 {[%clk 0:01:04]} 35. Qxb2 {[%clk 0:00:02]}  Bxf1 {[%clk 0:01:04]} 36. Rxf1 {[%clk 0:00:03]}  Rxb2+ {[%clk 0:01:04]} 37. Kxb2 {[%clk 0:00:04]}  h5 {[%clk 0:01:02]} 38. Bd3 {[%clk 0:00:03]}  h4 {[%clk 0:01:01]} 39. Rh1 {[%clk 0:00:04]}  Qg3 {[%clk 0:01:01]} 40. Be4 {[%clk 0:00:03]}  h3 {[%clk 0:01:01]} 41. Kc3 {[%clk 0:00:03]}  Qxe3+ {[%clk 0:01:00]} 42. Bd3 {[%clk 0:00:03]}  Qg3 {[%clk 0:01:00]} 43. Kd2 {[%clk 0:00:03]}  h2 {[%clk 0:01:00]} 44. Be4 {[%clk 0:00:03]}  f5 {[%clk 0:01:01]} 45. Bb7 {[%clk 0:00:02]}  g5 {[%clk 0:01:01]} 46. d5 {[%clk 0:00:02]}  exd5 {[%clk 0:01:01]} 47. Bxd5+ {[%clk 0:00:03]}  Kg7 {[%clk 0:01:01]} 48. c4 {[%clk 0:00:04]}  Qf2+ {[%clk 0:01:01]} 49. Kc3 {[%clk 0:00:03]}  g4 {[%clk 0:01:01]} 50. c5 {[%clk 0:00:02]}  Qxc5+ {[%clk 0:01:01]} 0-1


[Site "https://www.chess.com"]

[Event "Titled Tuesday Blitz May 30 Early 2023"]
[White "Fajdetic, Hrvoje"]
[Black "Romkachess"]
[WhiteFideId "14501945"]
[WhiteElo "2185"]
[BlackElo "2550"]
[Result "0-1"]
[Round "02"]
[TimeControl "180+2"]
[Date "2023.05.30"]
[WhiteClock "0:00:03"]
[BlackClock "0:00:19"]

1. d4 {[%clk 0:03:00]}  Nf6 {[%clk 0:02:58]} 2. Bf4 {[%clk 0:03:00]}  d5 {[%clk 0:02:58]} 3. e3 {[%clk 0:03:00]}  e6 {[%clk 0:02:57]} 4. Nf3 {[%clk 0:02:59]}  c5 {[%clk 0:02:56]} 5. Nc3 {[%clk 0:02:59]}  a6 {[%clk 0:02:56]} 6. Ne2 {[%clk 0:02:53]}  Nc6 {[%clk 0:02:55]} 7. c3 {[%clk 0:02:53]}  Bd6 {[%clk 0:02:55]} 8. Bg3 {[%clk 0:02:52]}  O-O {[%clk 0:02:52]} 9. Bh4 {[%clk 0:02:47]}  Re8 {[%clk 0:02:43]} 10. Nf4 {[%clk 0:02:38]}  h6 {[%clk 0:02:30]} 11. Nd3 {[%clk 0:02:35]}  Be7 {[%clk 0:02:18]} 12. Nxc5 {[%clk 0:02:24]}  g5 {[%clk 0:02:02]} 13. Bg3 {[%clk 0:02:21]}  Bxc5 {[%clk 0:01:59]} 14. dxc5 {[%clk 0:02:22]}  Ne4 {[%clk 0:02:00]} 15. h4 {[%clk 0:02:16]}  g4 {[%clk 0:01:57]} 16. Ne5 {[%clk 0:02:07]}  h5 {[%clk 0:01:55]} 17. Nxc6 {[%clk 0:01:42]}  bxc6 {[%clk 0:01:55]} 18. Be5 {[%clk 0:01:22]}  f6 {[%clk 0:01:52]} 19. f3 {[%clk 0:00:36]}  fxe5 {[%clk 0:01:21]} 20. fxe4 {[%clk 0:00:35]}  Qf6 {[%clk 0:01:18]} 21. Qa4 {[%clk 0:00:25]}  Bd7 {[%clk 0:01:04]} 22. O-O-O {[%clk 0:00:24]}  Rab8 {[%clk 0:00:55]} 23. Be2 {[%clk 0:00:08]}  Qf2 {[%clk 0:00:54]} 24. Rd2 {[%clk 0:00:06]}  Qxe3 {[%clk 0:00:53]} 25. Rd1 {[%clk 0:00:05]}  Qxc5 {[%clk 0:00:38]} 26. b4 {[%clk 0:00:04]}  Qxc3+ {[%clk 0:00:37]} 27. Rc2 {[%clk 0:00:03]}  Qxb4 {[%clk 0:00:33]} 28. Qxb4 {[%clk 0:00:04]}  Rxb4 {[%clk 0:00:34]} 29. Bxa6 {[%clk 0:00:04]}  Rxe4 {[%clk 0:00:30]} 30. Bd3 {[%clk 0:00:03]}  Ra4 {[%clk 0:00:29]} 31. Bg6 {[%clk 0:00:03]}  Rea8 {[%clk 0:00:28]} 32. Bxh5 {[%clk 0:00:04]}  Rxa2 {[%clk 0:00:27]} 33. Bxg4 {[%clk 0:00:03]}  Rxc2+ {[%clk 0:00:27]} 34. Kxc2 {[%clk 0:00:04]}  Ra2+ {[%clk 0:00:27]} 35. Kc1 {[%clk 0:00:04]}  Rxg2 {[%clk 0:00:28]} 36. Bf3 {[%clk 0:00:04]}  Rg3 {[%clk 0:00:28]} 37. Rf1 {[%clk 0:00:04]}  e4 {[%clk 0:00:28]} 38. Be2 {[%clk 0:00:04]}  d4 {[%clk 0:00:26]} 39. Bc4 {[%clk 0:00:04]}  d3 {[%clk 0:00:25]} 40. Rf4 {[%clk 0:00:04]}  Rg1+ {[%clk 0:00:22]} 41. Kd2 {[%clk 0:00:04]}  Rg2+ {[%clk 0:00:22]} 42. Kd1 {[%clk 0:00:03]}  c5 {[%clk 0:00:20]} 43. Rxe4 {[%clk 0:00:03]}  Ba4+ {[%clk 0:00:21]} 44. Ke1 {[%clk 0:00:03]}  d2+ {[%clk 0:00:21]} 45. Kf1 {[%clk 0:00:03]}  d1=Q+ {[%clk 0:00:19]} 46. Re1 {[%clk 0:00:03]} 0-1


[Site "https://www.chess.com"]

[Event "Titled Tuesday Blitz May 30 Early 2023"]
[White "Ziatdinov, Raset"]
[Black "Roberson, Peter T"]
[WhiteFideId "2015323"]
[BlackFideId "412384"]
[WhiteElo "2220"]
[BlackElo "2346"]
[Result "0-1"]
[Round "02"]
[TimeControl "180+2"]
[Date "2023.05.30"]
[WhiteClock "0:00:00"]
[BlackClock "0:00:10"]

1. e4 {[%clk 0:02:57]}  e5 {[%clk 0:02:54]} 2. Nf3 {[%clk 0:02:58]}  Nc6 {[%clk 0:02:54]} 3. Bb5 {[%clk 0:02:59]}  Nf6 {[%clk 0:02:55]} 4. O-O {[%clk 0:02:58]}  Nxe4 {[%clk 0:02:53]} 5. Re1 {[%clk 0:02:58]}  Nd6 {[%clk 0:02:54]} 6. Bxc6 {[%clk 0:02:59]}  dxc6 {[%clk 0:02:53]} 7. Nxe5 {[%clk 0:02:59]}  Be7 {[%clk 0:02:53]} 8. d4 {[%clk 0:02:59]}  O-O {[%clk 0:02:53]} 9. c3 {[%clk 0:03:00]}  Bf5 {[%clk 0:02:53]} 10. Nd2 {[%clk 0:02:59]}  Re8 {[%clk 0:02:53]} 11. Ndf3 {[%clk 0:02:59]}  Bf8 {[%clk 0:02:50]} 12. Bf4 {[%clk 0:02:57]}  h6 {[%clk 0:02:47]} 13. Qb3 {[%clk 0:02:55]}  Be6 {[%clk 0:02:42]} 14. Qc2 {[%clk 0:02:44]}  Qf6 {[%clk 0:02:39]} 15. Bg3 {[%clk 0:02:43]}  Rad8 {[%clk 0:02:31]} 16. Rad1 {[%clk 0:02:41]}  Bf5 {[%clk 0:02:25]} 17. Qc1 {[%clk 0:02:34]}  g5 {[%clk 0:02:07]} 18. Nd2 {[%clk 0:01:56]}  Bg7 {[%clk 0:01:46]} 19. Nec4 {[%clk 0:01:50]}  h5 {[%clk 0:01:24]} 20. f3 {[%clk 0:01:42]}  h4 {[%clk 0:01:23]} 21. Be5 {[%clk 0:01:33]}  Qg6 {[%clk 0:01:23]} 22. Bxg7 {[%clk 0:01:33]}  Kxg7 {[%clk 0:01:24]} 23. Ne5 {[%clk 0:01:33]}  Qh7 {[%clk 0:01:21]} 24. Ne4 {[%clk 0:01:30]}  f6 {[%clk 0:01:17]} 25. Nxd6 {[%clk 0:01:17]}  cxd6 {[%clk 0:01:17]} 26. Nc4 {[%clk 0:01:06]}  d5 {[%clk 0:01:05]} 27. Nd6 {[%clk 0:00:55]}  Rxe1+ {[%clk 0:00:59]} 28. Rxe1 {[%clk 0:00:56]}  Kf8 {[%clk 0:00:49]} 29. Qe3 {[%clk 0:00:41]}  Bd7 {[%clk 0:00:36]} 30. Nxb7 {[%clk 0:00:39]}  Re8 {[%clk 0:00:35]} 31. Qf2 {[%clk 0:00:38]}  Qd3 {[%clk 0:00:25]} 32. Nc5 {[%clk 0:00:29]}  Rxe1+ {[%clk 0:00:24]} 33. Qxe1 {[%clk 0:00:29]}  Qf5 {[%clk 0:00:25]} 34. a3 {[%clk 0:00:21]}  Bc8 {[%clk 0:00:21]} 35. Qe2 {[%clk 0:00:14]}  h3 {[%clk 0:00:21]} 36. gxh3 {[%clk 0:00:06]}  Qxh3 {[%clk 0:00:22]} 37. Qg2 {[%clk 0:00:06]}  Qf5 {[%clk 0:00:21]} 38. Qg3 {[%clk 0:00:06]}  Qb1+ {[%clk 0:00:21]} 39. Kg2 {[%clk 0:00:05]}  Qxb2+ {[%clk 0:00:22]} 40. Kh1 {[%clk 0:00:04]}  Qc1+ {[%clk 0:00:17]} 41. Kg2 {[%clk 0:00:04]}  Qd2+ {[%clk 0:00:18]} 42. Kg1 {[%clk 0:00:03]}  Qd1+ {[%clk 0:00:14]} 43. Kg2 {[%clk 0:00:03]}  Qe2+ {[%clk 0:00:14]} 44. Kg1 {[%clk 0:00:02]}  Kg8 {[%clk 0:00:11]} 45. Qd6 {[%clk 0:00:00]}  Bh3 {[%clk 0:00:10]} 0-1


[Site "https://www.chess.com"]